bitfinex-derivatives/quotes_ETHF0:USTF0_20250726
["timestamp","ask_amount","ask_price","bid_price","bid_amount"]
[1753525290702,6.1192,3764.3,3764.2,15.9638]
[1753525291191,6.1192,3764.3,3764.2,17.11046]
[1753525291395,6.1192,3764.3,3764.2,16.5793]
[1753525291896,6.1192,3764.3,3764.2,16.84750115]
[1753525292091,6.1192,3764.3,3764.2,0.88370115]
[1753525292302,6.1192,3764.3,3764.2,13.02020115]
[1753525293192,6.1192,3764.3,3764.2,0.26820115]
[1753525293393,6.1192,3764.0,3763.9,22.961]
[1753525293599,6.1192,3764.0,3763.9,35.714]
[1753525294705,6.65039,3764.0,3763.9,35.714]
[1753525294900,6.1192,3764.0,3763.9,35.714]
[1753525295095,6.65039,3764.0,3763.9,35.714]
[1753525295597,6.1192,3764.0,3763.9,35.714]
[1753525295803,6.1192,3764.0,3763.9,35.715]
[1753525296406,6.1192,3764.0,3763.9,35.9825]
[1753525297708,6.1192,3764.0,3763.9,37.45267416]
[1753525298002,2.2841,3764.0,3763.9,37.45267416]
[1753525298207,4.7249,3764.3,3764.2,2.51566]
[1753525298403,2.893,3764.3,3764.2,5.72346]
[1753525298603,3.8351,3764.9,3764.8,0.6155]
[1753525298810,6.1192,3764.9,3764.8,13.635]
[1753525299003,6.1192,3764.9,3764.8,14.59408]
[1753525299203,6.1192,3764.9,3764.8,17.80188]
[1753525299600,4.7249,3764.9,3764.8,18.47538]
[1753525300907,0.8744,3764.9,3764.8,18.47538]
[1753525301106,5.1448,3764.9,3764.8,18.47538]
[1753525301301,6.1192,3764.9,3764.8,18.47538]
[1753525301505,4.7249,3764.9,3764.8,18.47538]
[1753525303607,6.1192,3764.9,3764.8,18.47538]
[1753525303807,6.1192,3764.9,3764.8,17.80188]
[1753525304007,6.1192,3764.9,3764.8,16.49088]
[1753525304210,6.1192,3764.9,3764.8,17.80188]
[1753525304713,4.7249,3764.9,3764.8,18.47538]
[1753525305608,0.8744,3764.9,3764.8,18.47538]
[1753525306410,6.1192,3764.9,3764.8,16.48388]
[1753525306605,6.1192,3764.9,3764.8,15.9528]
[1753525306812,6.1192,3764.9,3764.8,16.48388]
[1753525307313,5.1192,3764.9,3764.8,16.48388]
[1753525308117,5.1192,3764.9,3764.8,3.73888]
[1753525308509,3.8351,3764.5,3764.4,3.2078]
[1753525308714,5.2448,3764.5,3764.4,15.9608]
[1753525309020,5.2448,3764.5,3764.4,16.49194]
[1753525309519,6.1192,3764.5,3764.4,16.49194]
[1753525309817,6.1192,3764.5,3764.4,3.2078]
[1753525310117,6.1192,3764.5,3764.4,15.9598]
[1753525311019,6.1192,3764.5,3764.4,3.2078]
[1753525311318,6.1192,3764.5,3764.4,13.28314]
[1753525311518,6.1192,3764.5,3764.4,12.752]
[1753525311716,6.1192,3764.4,3764.3,2.32875]
[1753525311920,6.1192,3764.4,3764.3,19.02825]
[1753525312608,3.8505,3764.4,3764.3,19.02825]
[1753525312808,6.1192,3764.7,3764.6,3.07141]
[1753525313008,1.4097,3764.7,3764.6,15.82141]
[1753525313208,6.1192,3765.0,3764.9,3.07137]
[1753525313614,6.1192,3765.0,3764.9,2.2096]
[1753525313814,6.1192,3765.0,3764.9,1.41617]
[1753525315314,6.1192,3765.0,3764.9,0.8851]
[1753525315623,6.1192,3765.0,3764.9,1.41617]
[1753525315816,6.1192,3765.0,3764.9,2.30937]
[1753525316518,6.1192,3765.0,3764.9,2.94417]
[1753525318321,6.1192,3765.0,3764.9,6.27917]
[1753525318823,1.4097,3765.0,3764.9,6.27917]
[1753525319720,2.2867,3765.3,3764.9,5.7481]
[1753525320023,6.2238,3765.3,3765.2,3.04112]
[1753525320225,6.2238,3765.3,3765.2,15.78612]
[1753525322018,6.2238,3765.3,3765.2,13.27202]
[1753525322219,6.2238,3765.3,3765.2,0.53102]
[1753525322421,2.4333,3765.0,3764.9,3.73887]
[1753525322723,6.174,3765.0,3764.9,3.73887]
[1753525322924,6.174,3765.0,3764.9,16.47887]
[1753525323124,5.3291,3765.0,3764.9,12.741]
[1753525323319,6.174,3765.0,3764.9,12.741]
[1753525323519,2.4333,3764.6,3764.5,22.945]
[1753525323824,6.17381961,3764.6,3764.5,35.687]
[1753525324622,6.17381961,3764.6,3764.5,35.686]
[1753525326023,6.17381961,3764.6,3764.5,36.21712]
[1753525326223,6.17381961,3764.6,3764.5,35.686]
[1753525327227,6.17381961,3764.6,3764.5,23.5285]
[1753525327424,6.17381961,3764.6,3764.5,36.2675]
[1753525327623,6.17381961,3764.6,3764.5,36.79862]
[1753525327822,6.17381961,3764.6,3764.5,38.10502]
[1753525328427,6.17381961,3764.6,3764.5,38.60012]
[1753525329128,6.17381961,3764.6,3764.5,36.9543]
[1753525329723,6.17381961,3764.6,3764.5,38.40392]
[1753525329923,6.17381961,3764.6,3764.5,38.52652]
[1753525330430,6.17381961,3764.6,3764.5,37.9954]
[1753525330626,6.17381961,3764.6,3764.5,37.8728]
[1753525332225,6.17381961,3764.6,3764.5,36.9543]
[1753525332426,6.17381961,3764.6,3764.5,36.5298]
[1753525332633,6.17381961,3764.6,3764.5,36.2645]
[1753525332831,6.17381961,3764.6,3764.5,35.681]
[1753525333031,6.17381961,3764.6,3764.5,35.676]
[1753525333327,6.17381961,3764.6,3764.5,22.945]
[1753525333529,6.17381961,3764.6,3764.5,35.676]
[1753525335732,6.17381961,3764.6,3764.5,36.20712]
[1753525335932,6.17381961,3764.6,3764.5,35.676]
[1753525336334,6.17381961,3764.6,3764.5,36.20712]
[1753525338242,6.17381961,3764.6,3764.5,22.945]
[1753525338431,6.17381961,3764.6,3764.5,35.668]
[1753525339138,6.17381961,3764.6,3764.5,36.19912]
[1753525339438,6.17381961,3764.6,3764.5,35.668]
[1753525340439,6.17381961,3764.6,3764.5,36.19912]
[1753525341335,6.17381961,3764.6,3764.5,35.668]
[1753525341535,6.17381961,3764.6,3764.5,35.9333]
[1753525341735,6.17381961,3764.6,3764.5,36.8518]
[1753525343241,6.17381961,3764.6,3764.5,37.50552]
[1753525343445,6.17381961,3764.6,3764.5,36.9744]
[1753525343640,6.70492961,3764.6,3764.5,36.9744]
[1753525344544,6.70492961,3764.6,3764.5,36.8518]
[1753525345742,6.70492961,3764.6,3764.5,22.945]
[1753525345944,11.70492961,3764.6,3764.5,35.663]
[1753525346347,6.70492961,3764.6,3764.5,35.663]
[1753525348146,6.70492961,3764.6,3764.5,0.058]
[1753525350451,2.4617,3764.1,3764.0,0.6065]
[1753525350644,2.4617,3764.1,3764.0,13.3185]
[1753525350645,6.82818,3764.1,3764.0,13.3185]
[1753525352850,6.82819,3764.0,3763.9,0.26626401]
[1753525353053,6.297,3763.5,3763.4,4.1482]
[1753525353249,6.82826,3763.5,3763.4,16.8602]
[1753525354252,6.82826,3763.5,3763.4,17.12040832]
[1753525354951,6.82826,3763.5,3763.4,12.97220832]
[1753525355147,6.82826,3763.5,3763.4,0.26020832]
[1753525355345,6.82826,3763.5,3763.4,12.711]
[1753525356051,6.82826,3763.5,3763.4,15.6394]
[1753525356252,6.82826,3763.5,3763.4,16.5404]
[1753525356453,3.61336,3763.5,3763.4,17.12187906]
[1753525356654,3.00476,3763.5,3763.4,17.12187906]
[1753525357355,5.24104,3763.7,3763.6,1.5338]
[1753525357556,3.73904,3763.7,3763.6,4.0256]
[1753525357853,3.73904,3763.7,3763.6,4.1482]
[1753525358445,5.24104,3763.7,3763.6,4.1482]
[1753525359151,9.5048,3763.7,3763.6,4.1482]
[1753525359352,10.03604,3763.7,3763.6,4.1482]
[1753525359552,10.03604,3763.7,3763.6,16.8632]
[1753525359952,9.5048,3763.7,3763.6,16.8632]
[1753525360552,3.2078,3764.1,3763.9,4.1482]
[1753525360756,2.43737,3764.2,3764.1,1.8526]
[1753525361056,1.9062,3764.2,3764.1,16.8622]
[1753525361256,3.4082,3764.2,3764.1,16.8622]
[1753525362457,6.297,3764.2,3764.1,16.8622]
[1753525362852,6.82816,3764.2,3764.1,16.7396]
[1753525363052,0.9715,3763.9,3763.8,0.1226]
[1753525363246,6.297,3763.9,3763.8,15.1478]
[1753525363451,6.297,3763.9,3763.8,15.344]
[1753525363750,6.297,3763.9,3763.8,16.8612]
[1753525364456,6.82821,3763.9,3763.8,16.8612]
[1753525364654,6.297,3763.9,3763.8,16.8612]
[1753525365759,6.82821,3763.9,3763.8,16.8612]
[1753525367259,6.82821,3763.9,3763.8,4.1482]
[1753525367449,6.82821,3763.9,3763.8,16.8592]
[1753525370754,6.82821,3763.9,3763.8,3.8294]
[1753525371061,6.82825,3763.6,3763.5,0.6065]
[1753525371264,6.82825,3763.6,3763.5,13.3125]
[1753525371664,6.82825,3763.6,3763.5,14.7071]
[1753525372061,6.82825,3763.6,3763.5,13.3145]
[1753525372753,6.82825,3763.6,3763.5,14.7091]
[1753525373460,6.82825,3763.6,3763.5,13.3145]
[1753525374163,6.82825,3763.6,3763.5,16.8562]
[1753525374364,6.297,3763.6,3763.5,17.38746]
[1753525374564,4.8984,3763.6,3763.5,17.38746]
[1753525374765,1.502,3763.8,3763.7,4.1482]
[1753525374960,1.3986,3764.1,3763.5,12.708]
[1753525374961,1.502,3764.0,3763.9,1.73]
[1753525375166,1.502,3764.2,3763.9,4.67941]
[1753525375466,1.502,3764.1,3764.0,4.1482]
[1753525375667,1.502,3764.1,3764.0,17.40839]
[1753525377266,1.502,3764.1,3764.0,16.8772]
[1753525377762,6.297,3764.1,3764.0,16.8742]
[1753525378762,6.82818,3764.1,3764.0,16.8742]
[1753525379270,6.297,3764.1,3764.0,16.8742]
[1753525379968,6.82818,3764.1,3764.0,16.8742]
[1753525380370,6.297,3764.1,3764.0,16.8742]
[1753525381768,6.82818,3764.1,3764.0,16.8742]
[1753525381965,3.6189,3764.0,3763.8,3.2078]
[1753525382169,2.5249,3763.9,3763.8,0.5639]
[1753525382477,6.1438,3763.9,3763.8,16.7044]
[1753525382672,6.1438,3763.9,3763.8,16.3856]
[1753525382673,6.67501,3763.9,3763.8,16.3856]
[1753525382859,6.67501,3763.9,3763.8,12.72]
[1753525383566,2.5249,3763.6,3763.5,13.2879]
[1753525383768,2.5249,3763.6,3763.5,16.7084]
[1753525384371,3.3209,3763.6,3763.5,16.7084]
[1753525384671,3.9411,3763.6,3763.5,16.7084]
[1753525384871,5.2732,3763.6,3763.5,17.23966]
[1753525385371,5.2732,3763.6,3763.5,16.7084]
[1753525385766,6.1438,3763.6,3763.5,16.7084]
[1753525389074,6.1438,3763.6,3763.5,17.23966]
[1753525389373,6.1438,3763.6,3763.5,16.7084]
[1753525390372,6.1438,3763.6,3763.5,16.6994]
[1753525390763,6.1438,3763.6,3763.5,16.5768]
[1753525391972,5.275,3763.5,3763.4,3.47047906]
[1753525392177,6.1438,3763.5,3763.4,12.97467906]
[1753525393271,6.67506,3763.5,3763.4,0.26267906]
[1753525393470,6.67506,3763.5,3763.4,12.714]
[1753525394580,6.1438,3763.5,3763.4,12.714]
[1753525394879,6.67512,3763.1,3763.0,22.948]
[1753525395178,6.67512,3763.1,3763.0,35.662]
[1753525395871,6.67512,3763.1,3763.0,1.9086]
[1753525396067,6.67512,3763.1,3763.0,14.6216]
[1753525396275,6.67512,3763.1,3763.0,14.8910353]
[1753525397171,6.1438,3763.1,3763.0,16.9678353]
[1753525401280,6.1438,3763.1,3763.0,17.4991653]
[1753525401778,6.1438,3763.1,3763.0,16.9678353]
[1753525402080,6.1438,3763.1,3763.0,4.2538353]
[1753525402285,6.1438,3763.1,3763.0,16.9668353]
[1753525403073,6.1438,3763.1,3763.0,0.2694353]
[1753525403074,6.67512,3763.1,3763.0,0.2694353]
[1753525403384,3.05625,3762.9,3762.8,12.718]
[1753525403679,6.1438,3762.9,3762.8,13.2819]
[1753525403980,6.67515,3762.9,3762.8,16.7024]
[1753525404170,6.1438,3762.9,3762.8,15.516]
[1753525404677,6.67515,3762.9,3762.8,15.516]
[1753525404879,6.67515,3762.9,3762.8,15.77590551]
[1753525405277,6.1438,3762.9,3762.8,16.64350551]
[1753525405476,6.1438,3762.9,3762.8,16.64450551]
[1753525407182,6.1438,3762.9,3762.8,16.96330551]
[1753525407382,1.418,3762.9,3762.8,17.76026551]
[1753525407584,2.2868,3762.9,3762.8,17.22890551]
[1753525407885,5.2732,3762.9,3762.8,17.49466551]
[1753525408278,3.9411,3762.9,3762.8,17.49466551]
[1753525408480,3.9411,3762.9,3762.8,17.76026551]
[1753525408683,3.9411,3762.9,3762.8,17.22890551]
[1753525409581,6.1438,3762.9,3762.8,17.22890551]
[1753525409886,6.1438,3762.9,3762.8,16.96330551]
[1753525411183,6.1438,3762.9,3762.8,17.22890551]
[1753525413985,6.67515,3762.9,3762.8,0.25990551]
[1753525414182,6.67515,3762.9,3762.8,16.5176]
[1753525414382,6.1438,3762.9,3762.8,16.8468]
[1753525415178,6.2027,3762.6,3762.5,1.9827]
[1753525415382,6.2027,3762.6,3762.5,14.7037]
[1753525415584,6.2027,3762.6,3762.5,16.8568]
[1753525416583,6.2027,3762.6,3762.5,17.12554705]
[1753525416784,1.4169,3762.6,3762.5,17.65694705]
[1753525417182,1.4062,3762.9,3762.8,0.6033]
[1753525417387,3.8991,3763.1,3763.0,1.7211]
[1753525417599,4.7858,3763.1,3763.0,4.1358]
[1753525417788,6.2027,3763.1,3763.0,4.1358]
[1753525419494,6.2027,3763.1,3763.0,2.8979]
[1753525419983,2.4432,3763.1,3762.8,3.73916]
[1753525420190,6.2027,3762.9,3762.8,0.53136]
[1753525420390,6.2027,3762.9,3762.8,15.23206]
[1753525420589,6.2027,3762.9,3762.8,17.05596]
[1753525421489,6.2027,3762.9,3762.8,17.38516]
[1753525424797,6.2027,3762.9,3762.8,4.66716]
[1753525424996,6.2027,3762.9,3762.8,17.37916]
[1753525425297,6.2027,3762.9,3762.8,4.66716]
[1753525425596,6.2027,3762.9,3762.8,17.37816]
[1753525428792,10.1778,3763.7,3763.6,4.1358]
[1753525429102,11.5947,3763.7,3763.6,16.7172]
[1753525430199,6.2027,3763.7,3763.6,16.7172]
[1753525432697,6.2027,3763.7,3763.6,15.6059]
[1753525432895,6.73393,3763.7,3763.6,15.6059]
[1753525433096,6.2027,3763.7,3763.6,15.6059]
[1753525434404,3.7595,3763.6,3763.3,1.3794]
[1753525434604,6.2027,3763.4,3763.3,2.51398]
[1753525434902,6.2027,3763.4,3763.3,15.23398]
[1753525435606,6.2027,3763.4,3763.3,16.14268]
[1753525436701,6.2027,3763.4,3763.3,17.05788]
[1753525438104,6.2027,3763.4,3763.3,17.38708]
[1753525438305,6.2027,3763.4,3763.3,16.8558]
[1753525440307,5.3906,3763.3,3763.2,4.0036]
[1753525440606,3.8779,3763.3,3763.2,16.7156]
[1753525441005,6.2955,3763.3,3763.2,16.7156]
[1753525444722,6.2955,3763.3,3763.2,17.24691]
[1753525444907,2.2862,3763.6,3763.2,15.0663]
[1753525445106,1.0118,3763.6,3763.5,4.52926]
[1753525445617,2.4966,3763.6,3763.5,4.52926]
[1753525446521,3.4015,3763.6,3763.5,4.52926]
[1753525446913,4.7828,3763.6,3763.5,4.52926]
[1753525449811,5.3839,3763.6,3763.5,4.52926]
[1753525450018,6.2955,3763.6,3763.5,4.52926]
[1753525452818,6.2955,3763.6,3763.5,2.7773]
[1753525453025,3.4294,3763.2,3763.1,2.8079]
[1753525453221,6.2955,3763.2,3763.1,14.6103]
[1753525453622,6.2955,3763.2,3763.1,17.22932]
[1753525455327,1.4848,3763.2,3763.1,17.22932]
[1753525455823,2.3897,3763.2,3763.1,17.22932]
[1753525456528,3.4015,3763.2,3763.1,17.22932]
[1753525456729,6.2955,3763.2,3763.1,17.22932]
[1753525459231,6.2955,3763.2,3763.1,20.43712]
[1753525462434,6.2955,3763.2,3763.1,3.2078]
[1753525462631,6.2955,3763.2,3763.1,15.9028]
[1753525464335,6.2955,3763.2,3763.1,17.8131]
[1753525465138,6.2955,3763.2,3763.1,19.9008]
[1753525465339,1.4848,3763.2,3763.1,20.43212]
[1753525465536,4.8107,3763.5,3763.4,2.17708]
[1753525465742,4.8107,3763.5,3763.4,4.52928]
[1753525466242,6.2955,3763.5,3763.4,4.52928]
[1753525467740,6.2955,3763.5,3763.4,3.998]
[1753525468037,6.2955,3763.5,3763.4,3.8737]
[1753525468743,6.2955,3763.5,3763.4,4.40498]
[1753525469944,6.2955,3763.5,3763.4,3.8737]
[1753525470445,6.2955,3763.5,3763.4,3.6749]
[1753525471142,2.421,3763.2,3763.1,3.73911]
[1753525471340,6.085,3763.2,3763.1,15.9028]
[1753525472346,6.085,3763.2,3763.1,20.06882]
[1753525472547,6.085,3763.2,3763.1,20.40272]
[1753525473348,6.085,3763.2,3763.1,19.8714]
[1753525473550,6.085,3763.2,3763.1,19.5375]
[1753525474746,6.085,3763.2,3763.1,18.6565]
[1753525477245,6.085,3763.2,3763.1,19.18782]
[1753525478149,6.085,3763.2,3763.1,15.98002]
[1753525478351,6.085,3763.2,3763.1,17.19492]
[1753525478853,4.7976,3763.2,3763.1,17.19492]
[1753525479047,2.7562,3763.4,3763.3,2.19799]
[1753525479242,2.7562,3763.4,3763.3,4.49989]
[1753525479450,6.085,3763.4,3763.3,4.49989]
[1753525479745,6.085,3763.4,3763.3,2.7537]
[1753525479947,2.421,3763.4,3763.1,0.881]
[1753525480155,6.085,3763.0,3762.9,1.12454]
[1753525480351,6.085,3763.0,3762.9,13.2882]
[1753525480651,6.085,3763.0,3762.9,13.81955]
[1753525481353,6.085,3763.0,3762.9,16.86105]
[1753525481651,6.085,3763.0,3762.9,16.86205]
[1753525483053,6.085,3763.0,3762.9,16.3307]
[1753525483354,6.085,3763.0,3762.9,16.86205]
[1753525483855,6.085,3763.0,3762.9,15.4497]
[1753525484154,6.085,3763.0,3762.9,14.1572]
[1753525485255,6.085,3763.0,3762.7,25.1275]
[1753525485456,2.421,3762.8,3762.7,25.7207]
[1753525485753,6.085,3762.8,3762.7,38.4167]
[1753525486958,6.085,3762.8,3762.7,38.94808]
[1753525487559,6.085,3762.8,3762.7,38.4167]
[1753525487759,6.085,3762.8,3762.7,38.94808]
[1753525488462,6.085,3762.8,3762.7,39.07648]
[1753525489164,4.7976,3762.8,3762.7,39.07648]
[1753525489464,3.3511,3762.8,3762.7,39.07648]
[1753525489861,1.4688,3762.8,3762.7,39.07648]
[1753525491070,6.085,3762.8,3762.7,39.07648]
[1753525491766,6.085,3762.8,3762.7,17.19598]
[1753525501767,4.7976,3762.8,3762.7,17.19598]
[1753525501970,2.4433,3762.8,3762.7,20.40378]
[1753525502272,1.4688,3762.8,3762.7,20.40378]
[1753525502766,2.3173,3762.8,3762.7,20.40378]
[1753525502971,3.7245,3763.2,3763.1,0.53132]
[1753525503271,4.5911,3763.4,3763.3,6.05049]
[1753525505072,6.1323,3763.4,3763.3,6.05049]
[1753525507972,3.2199,3763.7,3763.6,2.95505]
[1753525508277,6.1323,3763.7,3763.6,18.74445]
[1753525508774,1.5412,3763.7,3763.6,21.95225]
[1753525508969,1.3712,3763.9,3763.8,0.53122]
[1753525509276,1.3712,3764.9,3764.4,1.2874]
[1753525509473,6.1323,3764.8,3764.7,6.05029]
[1753525510679,6.1323,3765.1,3765.0,2.95485]
[1753525510877,6.1323,3765.1,3765.0,18.74425]
[1753525515979,6.1323,3765.1,3765.0,15.95825]
[1753525516178,6.1323,3765.1,3765.0,16.80965]
[1753525516379,6.1323,3765.1,3765.0,1.10965]
[1753525516575,6.1323,3765.1,3765.0,13.80065]
[1753525516775,6.1323,3765.1,3765.0,13.22205]
[1753525517278,6.1323,3765.1,3765.0,13.80065]
[1753525517484,6.1323,3765.1,3765.0,18.74155]
[1753525517975,6.1323,3765.1,3765.0,17.78465]
[1753525518180,6.1323,3765.1,3765.0,16.93325]
[1753525519878,6.1323,3765.1,3765.0,15.95525]
[1753525520984,6.1323,3765.1,3765.0,13.80065]
[1753525521584,6.1323,3765.1,3765.0,15.08805]
[1753525524383,6.1323,3765.1,3765.0,2.39705]
[1753525524588,6.1323,3765.1,3765.0,5.07255]
[1753525524887,6.1323,3765.1,3765.0,17.76055]
[1753525526284,6.1323,3765.1,3765.0,18.73855]
[1753525526484,4.7016,3765.1,3765.0,18.73855]
[1753525526797,5.2657,3765.1,3765.0,18.73855]
[1753525526983,1.5412,3765.1,3765.0,18.73855]
[1753525527184,2.4999,3765.3,3765.2,2.95482]
[1753525527491,2.4999,3765.3,3765.2,6.05052]
[1753525527989,0.018,3765.3,3765.2,6.05052]
[1753525530794,2.4787,3765.3,3765.2,6.05052]
[1753525531093,6.231,3765.3,3765.2,18.73752]
[1753525531795,0.018,3765.3,3765.2,18.73752]
[1753525532293,3.9523,3765.9,3765.8,2.94644]
[1753525532492,3.9523,3765.9,3765.8,18.87204]
[1753525532693,6.4257,3765.9,3765.8,18.87204]
[1753525534096,6.4257,3765.9,3765.8,18.3411]
[1753525534397,6.4257,3765.9,3765.8,18.87204]
[1753525535799,6.4257,3765.9,3765.8,18.3411]
[1753525536496,6.4257,3765.9,3765.8,18.87204]
[1753525536997,6.4257,3765.9,3765.8,6.18604]
[1753525537290,5.392,3767.1,3765.8,6.18604]
[1753525537291,3.2078,3767.3,3767.1,0.582]
[1753525537496,6.2257,3767.2,3767.1,4.2515]
[1753525537698,6.2257,3767.2,3767.1,18.3641]
[1753525538096,6.2257,3767.2,3767.1,18.89486]
[1753525538593,6.2257,3767.2,3767.1,18.62413227]
[1753525538789,1.03,3767.0,3766.9,12.71]
[1753525538996,2.4734,3766.6,3766.5,1.93444]
[1753525539193,2.1992,3767.0,3766.9,0.53078]
[1753525539395,6.2257,3767.0,3766.9,6.18588]
[1753525539989,2.4567,3767.2,3767.1,2.94626]
[1753525540195,4.0265,3767.5,3767.4,2.4155]
[1753525540498,6.2257,3767.5,3767.4,6.1858]
[1753525540793,2.4734,3767.2,3767.1,14.7016]
[1753525540999,6.2257,3767.2,3767.1,12.716]
[1753525541292,6.2257,3767.2,3766.5,0.26900531]
[1753525541293,4.6297,3766.6,3766.5,0.26900531]
[1753525541487,4.0265,3766.6,3766.1,3.2078]
[1753525541693,6.2257,3766.2,3766.1,0.582]
[1753525541894,0.9036,3766.0,3765.8,1.40413]
[1753525542093,2.4734,3765.9,3765.8,4.78243]
[1753525542291,6.2257,3765.9,3765.8,4.2515]
[1753525542598,1.5531,3765.9,3765.8,18.3871]
[1753525542795,6.2257,3766.1,3766.0,2.8588]
[1753525542995,6.2257,3766.1,3765.8,14.568]
[1753525543190,0.53087,3766.3,3765.8,15.85645963]
[1753525543191,2.4734,3765.9,3765.8,15.85645963]
[1753525543492,2.1992,3767.0,3766.9,0.582]
[1753525543800,6.2257,3767.0,3766.9,13.405]
[1753525543994,6.2257,3767.0,3766.9,14.2782]
[1753525544390,6.2257,3767.0,3766.9,15.6818]
[1753525544596,6.2257,3767.0,3766.9,16.6421]
[1753525544797,6.2257,3767.0,3766.9,19.00888]
[1753525545197,4.0265,3767.0,3766.9,19.00888]
[1753525545904,4.9301,3767.0,3766.9,19.00888]
[1753525546103,6.2257,3767.0,3766.9,19.00888]
[1753525546499,1.03,3767.2,3767.1,1.8335]
[1753525546702,2.5831,3767.2,3767.1,9.39366]
[1753525547008,6.2257,3767.2,3767.1,7.9049]
[1753525547208,6.2257,3767.2,3767.1,6.0666]
[1753525547505,6.2257,3767.2,3766.9,13.35378]
[1753525547506,6.2257,3767.0,3766.9,12.823]
[1753525547704,6.2257,3767.0,3766.9,19.00888]
[1753525547905,6.2257,3767.0,3766.9,17.5201]
[1753525548500,6.2257,3767.0,3766.9,16.6421]
[1753525548700,6.2257,3767.0,3766.9,13.405]
[1753525548901,6.2257,3767.0,3766.9,12.823]
[1753525549497,6.2257,3767.0,3766.9,13.35378]
[1753525549709,6.2257,3767.0,3766.9,1.9856]
[1753525550009,6.2257,3767.0,3766.9,0.582]
[1753525550511,6.2257,3767.0,3766.9,1.11278]
[1753525551309,6.2257,3767.0,3766.9,0.582]
[1753525551502,6.2257,3767.0,3766.9,1.11278]
[1753525551902,6.2257,3767.0,3766.9,2.51638]
[1753525552606,6.2257,3767.0,3766.9,0.582]
[1753525553006,6.2257,3767.0,3766.8,13.35379]
[1753525553206,6.2257,3766.9,3766.8,13.35379]
[1753525553711,6.2257,3766.9,3766.8,13.3538]
[1753525553911,6.2257,3766.9,3766.8,12.823]
[1753525554111,6.2257,3766.9,3766.8,13.3538]
[1753525555717,3.2078,3767.5,3766.4,1.4036]
[1753525555718,0.8774,3766.5,3766.4,1.4036]
[1753525555916,6.2257,3766.4,3766.3,17.15797]
[1753525556117,6.2257,3766.4,3766.3,18.99397]
[1753525557021,1.5531,3766.4,3766.3,18.99397]
[1753525557217,4.6726,3766.7,3766.6,0.53083]
[1753525557424,4.6726,3766.7,3766.6,6.18593]
[1753525557817,6.2257,3766.7,3766.6,6.18593]
[1753525558327,6.2257,3766.7,3766.6,5.6551]
[1753525558723,6.2257,3766.7,3766.6,0.582]
[1753525559118,3.7523,3766.6,3766.5,12.807]
[1753525559327,6.2257,3766.6,3766.5,12.807]
[1753525559522,6.75653,3766.6,3766.5,12.807]
[1753525561120,2.4435,3766.0,3765.9,15.25552]
[1753525561320,6.09,3766.0,3765.9,15.25552]
[1753525562016,6.09,3766.0,3765.9,16.12492]
[1753525562215,6.09,3766.0,3765.9,17.02272]
[1753525563028,6.09,3766.0,3765.9,16.12492]
[1753525563723,6.62091,3766.0,3765.9,16.4908]
[1753525563932,6.62091,3766.0,3765.9,12.801]
[1753525564320,5.33618,3765.6,3765.4,13.32999]
[1753525564524,6.62098,3765.5,3765.4,15.9135]
[1753525564725,6.62098,3765.5,3765.4,13.3743]
[1753525564930,6.62098,3765.5,3765.4,12.799]
[1753525565132,6.09,3765.5,3765.4,13.3743]
[1753525565327,6.09,3765.5,3765.4,14.7216]
[1753525565622,6.09,3765.5,3765.4,18.9336]
[1753525565828,6.09,3765.5,3765.4,6.1346]
[1753525566224,1.4615,3765.5,3765.4,6.1346]
[1753525566826,1.4615,3765.5,3765.4,6.40019525]
[1753525567024,3.6465,3766.1,3766.0,2.93191]
[1753525567224,3.6465,3766.1,3765.4,3.47339525]
[1753525567225,4.4926,3766.4,3766.3,2.401]
[1753525567429,2.7463,3766.4,3766.3,5.6036]
[1753525567927,5.392,3766.6,3766.3,5.6036]
[1753525568128,1.4615,3766.7,3766.6,5.6036]
[1753525568333,3.905,3766.7,3766.6,5.6036]
[1753525569032,4.43581,3766.7,3766.6,5.6036]
[1753525569332,6.62081,3766.7,3766.6,3.7483]
[1753525569534,6.62081,3766.7,3766.6,2.792]
[1753525570036,6.62081,3766.7,3766.6,4.6461]
[1753525570333,6.62081,3766.7,3766.6,3.7483]
[1753525570537,6.62081,3766.7,3766.6,2.792]
[1753525571036,6.62081,3766.7,3766.6,4.6461]
[1753525571238,6.09,3766.7,3766.6,5.6036]
[1753525572136,6.62081,3766.7,3766.6,5.6036]
[1753525572336,6.09,3766.7,3766.6,5.6036]
[1753525572732,6.09,3766.7,3766.6,6.13443]
[1753525573129,6.09,3766.7,3766.6,5.6036]
[1753525573739,6.62081,3766.7,3766.6,5.6036]
[1753525574038,6.62081,3766.7,3766.6,0.5753]
[1753525574439,0.53083,3766.6,3766.5,12.808]
[1753525574636,6.09,3766.1,3766.0,3.6898]
[1753525574830,6.09,3766.1,3766.0,16.11891]
[1753525575035,6.09,3766.1,3766.0,18.93051]
[1753525575235,6.09,3766.1,3766.0,18.3996]
[1753525575436,6.09,3766.1,3766.0,17.4421]
[1753525575837,6.09,3766.1,3766.0,18.3996]
[1753525577336,6.6209,3766.1,3766.0,18.3996]
[1753525577534,6.6209,3766.1,3766.0,15.588]
[1753525577736,6.09,3766.1,3766.0,14.2407]
[1753525577936,6.09,3766.1,3766.0,18.3996]